[Event "Titled Tuesday Blitz July 11 Late 2023"]
[White "Bortnyk, Mykola"]
[Black "Ibarra Jerez, Jose Carlos"]
[WhiteFideId "14120836"]
[BlackFideId "2226332"]
[WhiteElo "3006"]
[BlackElo "2925"]
[Result "1-0"]
[Round "10"]
[TimeControl "180+2"]
[Date "2023.07.11"]
[WhiteClock "0:00:57"]
[BlackClock "0:00:03"]
[Board "8"]

1. e4 {[%clk 0:03:00]}  c5 {[%clk 0:02:59]} 2. c3 {[%clk 0:03:00]}  Nf6 {[%clk 0:02:59]} 3. e5 {[%clk 0:03:00]}  Nd5 {[%clk 0:03:00]} 4. Nf3 {[%clk 0:03:01]}  Nc6 {[%clk 0:02:59]} 5. Bc4 {[%clk 0:03:01]}  Nb6 {[%clk 0:02:59]} 6. Bb3 {[%clk 0:03:00]}  g6 {[%clk 0:03:00]} 7. a4 {[%clk 0:02:55]}  Na5 {[%clk 0:02:53]} 8. Ba2 {[%clk 0:02:53]}  Bg7 {[%clk 0:02:50]} 9. b4 {[%clk 0:02:50]}  cxb4 {[%clk 0:02:45]} 10. cxb4 {[%clk 0:02:51]}  Nc6 {[%clk 0:02:45]} 11. a5 {[%clk 0:02:52]}  Nxb4 {[%clk 0:02:36]} 12. axb6 {[%clk 0:02:51]}  Nd3+ {[%clk 0:02:32]} 13. Ke2 {[%clk 0:02:46]}  Nf4+ {[%clk 0:01:21]} 14. Kf1 {[%clk 0:02:45]}  Qxb6 {[%clk 0:01:21]} 15. d3 {[%clk 0:02:37]}  Ne6 {[%clk 0:01:08]} 16. Nc3 {[%clk 0:02:37]}  O-O {[%clk 0:01:07]} 17. Nd5 {[%clk 0:02:37]}  Qd8 {[%clk 0:01:07]} 18. Ba3 {[%clk 0:02:21]}  d6 {[%clk 0:01:06]} 19. Rc1 {[%clk 0:02:22]}  Bd7 {[%clk 0:00:52]} 20. exd6 {[%clk 0:02:18]}  exd6 {[%clk 0:00:53]} 21. Bxd6 {[%clk 0:02:17]}  Re8 {[%clk 0:00:53]} 22. Bc7 {[%clk 0:02:10]}  Qc8 {[%clk 0:00:20]} 23. Be5 {[%clk 0:02:06]}  Bc6 {[%clk 0:00:20]} 24. Bxg7 {[%clk 0:02:02]}  Kxg7 {[%clk 0:00:20]} 25. Qd2 {[%clk 0:02:02]}  Qd8 {[%clk 0:00:21]} 26. Ne3 {[%clk 0:01:46]}  f6 {[%clk 0:00:21]} 27. Bxe6 {[%clk 0:01:45]}  Rxe6 {[%clk 0:00:21]} 28. h4 {[%clk 0:01:42]}  h5 {[%clk 0:00:17]} 29. Rh3 {[%clk 0:01:40]}  a5 {[%clk 0:00:15]} 30. Rg3 {[%clk 0:01:40]}  Kf7 {[%clk 0:00:15]} 31. d4 {[%clk 0:01:37]}  Be4 {[%clk 0:00:09]} 32. d5 {[%clk 0:01:35]}  Rd6 {[%clk 0:00:10]} 33. Kg1 {[%clk 0:01:24]}  a4 {[%clk 0:00:08]} 34. Qd4 {[%clk 0:01:19]}  Bxd5 {[%clk 0:00:07]} 35. Nxd5 {[%clk 0:01:12]}  a3 {[%clk 0:00:07]} 36. Qe4 {[%clk 0:01:08]}  f5 {[%clk 0:00:02]} 37. Ne5+ {[%clk 0:01:08]}  Kg7 {[%clk 0:00:02]} 38. Qxf5 {[%clk 0:01:07]}  Raa6 {[%clk 0:00:02]} 39. Qf7+ {[%clk 0:01:06]}  Kh6 {[%clk 0:00:03]} 40. Ne7 {[%clk 0:00:58]}  a2 {[%clk 0:00:03]} 41. Nf5+ {[%clk 0:00:57]}  gxf5 {[%clk 0:00:03]} 42. Qg7# {[%clk 0:00:57]} 1-0


[Site "https://www.chess.com"]

[Event "Titled Tuesday Blitz July 11 Late 2023"]
[White "Shimanov, Aleksandr"]
[Black "Zemlyanskii, Ivan"]
[WhiteFideId "4198603"]
[BlackFideId "24249971"]
[WhiteElo "2943"]
[BlackElo "2817"]
[Result "1-0"]
[Round "10"]
[TimeControl "180+2"]
[Date "2023.07.11"]
[WhiteClock "0:00:04"]
[BlackClock "0:00:00"]
[Board "9"]

1. d4 {[%clk 0:03:00]}  d5 {[%clk 0:02:58]} 2. c4 {[%clk 0:02:59]}  c6 {[%clk 0:02:58]} 3. e3 {[%clk 0:02:58]}  Nf6 {[%clk 0:02:59]} 4. Bd3 {[%clk 0:02:58]}  Bg4 {[%clk 0:02:46]} 5. f3 {[%clk 0:02:55]}  Bh5 {[%clk 0:02:45]} 6. Nc3 {[%clk 0:02:55]}  e6 {[%clk 0:02:45]} 7. Nge2 {[%clk 0:02:55]}  Nbd7 {[%clk 0:02:40]} 8. Qb3 {[%clk 0:02:52]}  dxc4 {[%clk 0:02:21]} 9. Bxc4 {[%clk 0:02:53]}  b5 {[%clk 0:02:22]} 10. Bd3 {[%clk 0:02:53]}  Nc5 {[%clk 0:02:12]} 11. Qc2 {[%clk 0:02:50]}  Nxd3+ {[%clk 0:02:11]} 12. Qxd3 {[%clk 0:02:51]}  a6 {[%clk 0:02:10]} 13. O-O {[%clk 0:02:34]}  c5 {[%clk 0:02:07]} 14. Rd1 {[%clk 0:02:26]}  cxd4 {[%clk 0:01:50]} 15. Nxd4 {[%clk 0:02:25]}  Bc5 {[%clk 0:01:50]} 16. Ncxb5 {[%clk 0:02:12]}  axb5 {[%clk 0:01:35]} 17. Qxb5+ {[%clk 0:02:13]}  Nd7 {[%clk 0:01:36]} 18. Nb3 {[%clk 0:02:12]}  Rc8 {[%clk 0:01:13]} 19. Bd2 {[%clk 0:02:00]}  Qb6 {[%clk 0:01:08]} 20. Qa4 {[%clk 0:01:39]}  Qc6 {[%clk 0:00:53]} 21. Qxc6 {[%clk 0:01:33]}  Rxc6 {[%clk 0:00:54]} 22. Rac1 {[%clk 0:01:34]}  Rc7 {[%clk 0:00:46]} 23. Ba5 {[%clk 0:01:30]}  Bxe3+ {[%clk 0:00:46]} 24. Kf1 {[%clk 0:01:30]}  Rxc1 {[%clk 0:00:43]} 25. Nxc1 {[%clk 0:01:30]}  Bb6 {[%clk 0:00:30]} 26. Bb4 {[%clk 0:01:18]}  Bc5 {[%clk 0:00:28]} 27. Bc3 {[%clk 0:01:16]}  f6 {[%clk 0:00:21]} 28. Nb3 {[%clk 0:01:16]}  Be7 {[%clk 0:00:14]} 29. Nd4 {[%clk 0:01:16]}  Nc5 {[%clk 0:00:07]} 30. Nc6 {[%clk 0:01:12]}  Na4 {[%clk 0:00:08]} 31. Be1 {[%clk 0:01:08]}  Rf8 {[%clk 0:00:05]} 32. Nxe7 {[%clk 0:01:07]}  Nxb2 {[%clk 0:00:01]} 33. Rb1 {[%clk 0:00:59]}  Nc4 {[%clk 0:00:02]} 34. Rb8+ {[%clk 0:00:50]}  Kf7 {[%clk 0:00:02]} 35. Rb7 {[%clk 0:00:33]}  Ra8 {[%clk 0:00:02]} 36. Nf5+ {[%clk 0:00:28]}  Kf8 {[%clk 0:00:02]} 37. Bb4+ {[%clk 0:00:28]}  Kg8 {[%clk 0:00:01]} 38. Rxg7+ {[%clk 0:00:02]}  Kh8 {[%clk 0:00:01]} 39. Be7 {[%clk 0:00:03]}  exf5 {[%clk 0:00:02]} 40. Bxf6 {[%clk 0:00:03]}  Ra6 {[%clk 0:00:02]} 41. Bc3 {[%clk 0:00:03]}  h6 {[%clk 0:00:01]} 42. Ra7+ {[%clk 0:00:02]}  Kg8 {[%clk 0:00:01]} 43. Rxa6 {[%clk 0:00:03]}  Bf7 {[%clk 0:00:02]} 44. Ra8+ {[%clk 0:00:03]}  Kh7 {[%clk 0:00:02]} 45. Ra7 {[%clk 0:00:03]}  Kg6 {[%clk 0:00:02]} 46. Ra6+ {[%clk 0:00:04]}  Kh7 {[%clk 0:00:02]} 47. Rf6 {[%clk 0:00:04]}  Bd5 {[%clk 0:00:03]} 48. Kf2 {[%clk 0:00:04]}  Ne5 {[%clk 0:00:01]} 49. Bxe5 {[%clk 0:00:04]}  Bxa2 {[%clk 0:00:00]} 50. Rxf5 {[%clk 0:00:04]} 1-0


[Site "https://www.chess.com"]

[Event "Titled Tuesday Blitz July 11 Late 2023"]
[White "Leitao, Rafael"]
[Black "Licznerski, Lukasz"]
[WhiteFideId "2101246"]
[BlackFideId "1179250"]
[WhiteElo "2771"]
[BlackElo "2832"]
[Result "1-0"]
[Round "10"]
[TimeControl "180+2"]
[Date "2023.07.11"]
[WhiteClock "0:00:23"]
[BlackClock "0:00:02"]
[Board "11"]

1. c4 {[%clk 0:03:00]}  Nf6 {[%clk 0:02:34]} 2. Nc3 {[%clk 0:02:57]}  e5 {[%clk 0:02:35]} 3. Nf3 {[%clk 0:02:57]}  Nc6 {[%clk 0:02:35]} 4. e4 {[%clk 0:02:57]}  Bb4 {[%clk 0:02:34]} 5. d3 {[%clk 0:02:57]}  d6 {[%clk 0:02:32]} 6. a3 {[%clk 0:02:57]}  Bxc3+ {[%clk 0:02:21]} 7. bxc3 {[%clk 0:02:56]}  h6 {[%clk 0:02:11]} 8. g3 {[%clk 0:02:55]}  O-O {[%clk 0:02:10]} 9. Bg2 {[%clk 0:02:55]}  a5 {[%clk 0:01:42]} 10. a4 {[%clk 0:02:51]}  b6 {[%clk 0:01:36]} 11. O-O {[%clk 0:02:49]}  Nd7 {[%clk 0:01:36]} 12. Nh4 {[%clk 0:02:42]}  Nc5 {[%clk 0:01:34]} 13. Nf5 {[%clk 0:02:36]}  Ne7 {[%clk 0:01:30]} 14. d4 {[%clk 0:02:26]}  Nd7 {[%clk 0:01:15]} 15. f4 {[%clk 0:01:13]}  Nxf5 {[%clk 0:00:40]} 16. exf5 {[%clk 0:01:11]}  Rb8 {[%clk 0:00:40]} 17. fxe5 {[%clk 0:01:11]}  dxe5 {[%clk 0:00:41]} 18. Re1 {[%clk 0:00:43]}  f6 {[%clk 0:00:19]} 19. Qg4 {[%clk 0:00:40]}  Kh8 {[%clk 0:00:17]} 20. Bd5 {[%clk 0:00:35]}  Bb7 {[%clk 0:00:14]} 21. Be6 {[%clk 0:00:36]}  Re8 {[%clk 0:00:09]} 22. Be3 {[%clk 0:00:29]}  Nf8 {[%clk 0:00:08]} 23. d5 {[%clk 0:00:29]}  Nd7 {[%clk 0:00:07]} 24. Qg6 {[%clk 0:00:26]}  Qe7 {[%clk 0:00:06]} 25. Bxh6 {[%clk 0:00:26]}  Nf8 {[%clk 0:00:04]} 26. Qh5 {[%clk 0:00:25]}  gxh6 {[%clk 0:00:04]} 27. Qxh6+ {[%clk 0:00:26]}  Nh7 {[%clk 0:00:05]} 28. Re4 {[%clk 0:00:26]}  Qg7 {[%clk 0:00:05]} 29. Qh5 {[%clk 0:00:26]}  Re7 {[%clk 0:00:03]} 30. Rg4 {[%clk 0:00:25]}  Qf8 {[%clk 0:00:03]} 31. Re1 {[%clk 0:00:21]}  Bc8 {[%clk 0:00:03]} 32. Ree4 {[%clk 0:00:21]}  Bxe6 {[%clk 0:00:03]} 33. dxe6 {[%clk 0:00:21]}  Rd8 {[%clk 0:00:03]} 34. Rg6 {[%clk 0:00:21]}  Rg7 {[%clk 0:00:03]} 35. Reg4 {[%clk 0:00:21]}  Rd1+ {[%clk 0:00:02]} 36. Kg2 {[%clk 0:00:21]}  Rd2+ {[%clk 0:00:03]} 37. Kh3 {[%clk 0:00:22]}  Rxg6 {[%clk 0:00:03]} 38. fxg6 {[%clk 0:00:22]}  Qg7 {[%clk 0:00:03]} 39. gxh7 {[%clk 0:00:23]}  Qxh7 {[%clk 0:00:04]} 40. Qxh7+ {[%clk 0:00:22]}  Kxh7 {[%clk 0:00:02]} 41. e7 {[%clk 0:00:23]} 1-0


[Site "https://www.chess.com"]

[Event "Titled Tuesday Blitz July 11 Late 2023"]
[White "Gordievsky, Dmitry"]
[Black "Maghsoodloo, Parham"]
[WhiteFideId "24112798"]
[BlackFideId "12539929"]
[WhiteElo "2912"]
[BlackElo "2967"]
[Result "0-1"]
[Round "10"]
[TimeControl "180+2"]
[Date "2023.07.11"]
[WhiteClock "0:00:04"]
[BlackClock "0:00:18"]
[Board "15"]

1. Nf3 {[%clk 0:03:00]}  a6 {[%clk 0:02:59]} 2. e4 {[%clk 0:02:59]}  b5 {[%clk 0:02:58]} 3. d4 {[%clk 0:02:59]}  Bb7 {[%clk 0:02:59]} 4. Bd3 {[%clk 0:02:59]}  c5 {[%clk 0:02:59]} 5. dxc5 {[%clk 0:02:58]}  Nf6 {[%clk 0:02:57]} 6. e5 {[%clk 0:02:57]}  Nd5 {[%clk 0:02:51]} 7. Nbd2 {[%clk 0:02:55]}  Nf4 {[%clk 0:02:49]} 8. Be4 {[%clk 0:02:55]}  Qc8 {[%clk 0:02:46]} 9. O-O {[%clk 0:02:52]}  e6 {[%clk 0:02:41]} 10. b4 {[%clk 0:02:48]}  a5 {[%clk 0:02:32]} 11. c3 {[%clk 0:02:48]}  Nc6 {[%clk 0:02:31]} 12. Nb3 {[%clk 0:02:26]}  Ng6 {[%clk 0:02:28]} 13. Bxg6 {[%clk 0:01:53]}  hxg6 {[%clk 0:02:28]} 14. a3 {[%clk 0:01:53]}  Be7 {[%clk 0:02:27]} 15. Re1 {[%clk 0:01:52]}  f5 {[%clk 0:02:13]} 16. Bf4 {[%clk 0:01:45]}  Nd8 {[%clk 0:02:11]} 17. Nbd4 {[%clk 0:01:40]}  Nf7 {[%clk 0:02:10]} 18. Qd2 {[%clk 0:01:06]}  Rh5 {[%clk 0:02:10]} 19. h4 {[%clk 0:00:58]}  Bxh4 {[%clk 0:02:08]} 20. Nxh4 {[%clk 0:00:58]}  Rxh4 {[%clk 0:02:08]} 21. f3 {[%clk 0:00:54]}  Rh5 {[%clk 0:01:53]} 22. Nxb5 {[%clk 0:00:50]}  g5 {[%clk 0:01:53]} 23. Bxg5 {[%clk 0:00:41]}  Rxg5 {[%clk 0:01:42]} 24. Nd6+ {[%clk 0:00:37]}  Nxd6 {[%clk 0:01:42]} 25. Qxg5 {[%clk 0:00:37]}  Nc4 {[%clk 0:01:39]} 26. Kf2 {[%clk 0:00:31]}  Kf7 {[%clk 0:01:33]} 27. Qh5+ {[%clk 0:00:30]}  Ke7 {[%clk 0:01:33]} 28. Qh4+ {[%clk 0:00:25]}  Kf7 {[%clk 0:01:33]} 29. Qxc4 {[%clk 0:00:26]}  Qd8 {[%clk 0:01:26]} 30. Qf4 {[%clk 0:00:24]}  Bc6 {[%clk 0:01:12]} 31. Red1 {[%clk 0:00:25]}  Qb8 {[%clk 0:01:11]} 32. Rd6 {[%clk 0:00:22]}  axb4 {[%clk 0:01:10]} 33. cxb4 {[%clk 0:00:23]}  Qb5 {[%clk 0:01:09]} 34. Qd4 {[%clk 0:00:22]}  Kg6 {[%clk 0:01:03]} 35. Qd3 {[%clk 0:00:22]}  Qa4 {[%clk 0:01:03]} 36. Qc3 {[%clk 0:00:20]}  Rh8 {[%clk 0:01:00]} 37. Rb1 {[%clk 0:00:18]}  Rh4 {[%clk 0:00:57]} 38. Qb3 {[%clk 0:00:17]}  Qa8 {[%clk 0:00:48]} 39. Rbd1 {[%clk 0:00:13]}  Ba4 {[%clk 0:00:45]} 40. Qd3 {[%clk 0:00:11]}  Bxd1 {[%clk 0:00:44]} 41. Qxd1 {[%clk 0:00:09]}  Qxa3 {[%clk 0:00:44]} 42. c6 {[%clk 0:00:04]}  dxc6 {[%clk 0:00:36]} 43. Rxe6+ {[%clk 0:00:05]}  Kh7 {[%clk 0:00:36]} 44. Rxc6 {[%clk 0:00:04]}  Qb2+ {[%clk 0:00:29]} 45. Qc2 {[%clk 0:00:03]}  Qd4+ {[%clk 0:00:23]} 46. Kg3 {[%clk 0:00:04]}  Qf4+ {[%clk 0:00:23]} 47. Kf2 {[%clk 0:00:04]}  Qd4+ {[%clk 0:00:23]} 48. Kg3 {[%clk 0:00:04]}  Rh5 {[%clk 0:00:18]} 49. Qc3 {[%clk 0:00:04]}  Qh4# {[%clk 0:00:18]} 0-1


[Site "https://www.chess.com"]

[Event "Titled Tuesday Blitz July 11 Late 2023"]
[White "Svane, Rasmus"]
[Black "Svane, Frederik"]
[WhiteFideId "4657101"]
[BlackFideId "12923044"]
[WhiteElo "2954"]
[BlackElo "2811"]
[Result "1-0"]
[Round "10"]
[TimeControl "180+2"]
[Date "2023.07.11"]
[WhiteClock "0:00:51"]
[BlackClock "0:00:00"]
[Board "16"]

1. Nf3 {[%clk 0:03:00]}  g6 {[%clk 0:03:00]} 2. d4 {[%clk 0:03:01]}  Nf6 {[%clk 0:02:59]} 3. g3 {[%clk 0:03:00]}  Bg7 {[%clk 0:02:59]} 4. Bg2 {[%clk 0:03:01]}  O-O {[%clk 0:03:00]} 5. O-O {[%clk 0:03:02]}  b6 {[%clk 0:02:58]} 6. c4 {[%clk 0:03:01]}  Bb7 {[%clk 0:02:58]} 7. Re1 {[%clk 0:03:01]}  d6 {[%clk 0:02:58]} 8. Qc2 {[%clk 0:02:58]}  Nbd7 {[%clk 0:02:58]} 9. e4 {[%clk 0:02:58]}  e5 {[%clk 0:02:58]} 10. Nc3 {[%clk 0:02:55]}  h6 {[%clk 0:02:50]} 11. h3 {[%clk 0:02:53]}  Re8 {[%clk 0:02:46]} 12. Be3 {[%clk 0:02:51]}  exd4 {[%clk 0:02:40]} 13. Bxd4 {[%clk 0:02:41]}  Nc5 {[%clk 0:02:38]} 14. Nd2 {[%clk 0:02:42]}  a5 {[%clk 0:02:32]} 15. Rad1 {[%clk 0:02:39]}  Ne6 {[%clk 0:02:18]} 16. Be3 {[%clk 0:02:38]}  Nd7 {[%clk 0:02:18]} 17. Nf3 {[%clk 0:02:28]}  Nec5 {[%clk 0:02:12]} 18. Nd4 {[%clk 0:02:26]}  a4 {[%clk 0:02:11]} 19. b4 {[%clk 0:02:23]}  axb3 {[%clk 0:02:11]} 20. axb3 {[%clk 0:02:24]}  Ne5 {[%clk 0:01:57]} 21. Nd5 {[%clk 0:02:20]}  Kh7 {[%clk 0:01:44]} 22. f4 {[%clk 0:01:38]}  Nc6 {[%clk 0:01:44]} 23. Nxc6 {[%clk 0:01:38]}  Bxc6 {[%clk 0:01:45]} 24. e5 {[%clk 0:01:36]}  Bb7 {[%clk 0:00:01]} 25. Bxc5 {[%clk 0:01:25]}  bxc5 {[%clk 0:00:01]} 26. Nf6+ {[%clk 0:01:23]}  Bxf6 {[%clk 0:00:02]} 27. Bxb7 {[%clk 0:01:24]}  Bg7 {[%clk 0:00:01]} 28. Bxa8 {[%clk 0:01:16]}  Qxa8 {[%clk 0:00:02]} 29. Rd5 {[%clk 0:00:51]}  dxe5 {[%clk 0:00:02]} 30. fxe5 {[%clk 0:00:52]}  c6 {[%clk 0:00:00]} 31. Rd7 {[%clk 0:00:51]} 1-0


[Site "https://www.chess.com"]

[Event "Titled Tuesday Blitz July 11 Late 2023"]
[White "Chigaev, Maksim"]
[Black "Matinian, Nikita"]
[WhiteFideId "4108116"]
[BlackFideId "24129100"]
[WhiteElo "2951"]
[BlackElo "2722"]
[Result "1-0"]
[Round "10"]
[TimeControl "180+2"]
[Date "2023.07.11"]
[WhiteClock "0:00:17"]
[BlackClock "0:00:00"]
[Board "17"]

1. e4 {[%clk 0:03:00]}  c5 {[%clk 0:02:59]} 2. b3 {[%clk 0:03:01]}  g6 {[%clk 0:02:56]} 3. Bb2 {[%clk 0:03:01]}  Nf6 {[%clk 0:02:57]} 4. e5 {[%clk 0:02:58]}  Nd5 {[%clk 0:02:57]} 5. Nc3 {[%clk 0:02:59]}  Nc7 {[%clk 0:02:52]} 6. Ne4 {[%clk 0:02:54]}  Ne6 {[%clk 0:02:50]} 7. h4 {[%clk 0:02:44]}  Nc6 {[%clk 0:02:42]} 8. h5 {[%clk 0:02:43]}  Bg7 {[%clk 0:02:42]} 9. Nf3 {[%clk 0:02:42]}  Qc7 {[%clk 0:02:38]} 10. h6 {[%clk 0:02:40]}  Bxe5 {[%clk 0:02:31]} 11. Nxe5 {[%clk 0:02:39]}  Nxe5 {[%clk 0:02:32]} 12. Be2 {[%clk 0:01:24]}  O-O {[%clk 0:02:23]} 13. O-O {[%clk 0:01:24]}  d5 {[%clk 0:02:23]} 14. Nxc5 {[%clk 0:01:19]}  Nxc5 {[%clk 0:01:50]} 15. d4 {[%clk 0:01:19]}  Ned7 {[%clk 0:01:23]} 16. dxc5 {[%clk 0:01:18]}  Qxc5 {[%clk 0:01:24]} 17. Bf3 {[%clk 0:01:10]}  Nb6 {[%clk 0:01:08]} 18. a4 {[%clk 0:01:06]}  Bf5 {[%clk 0:01:06]} 19. a5 {[%clk 0:01:04]}  Nd7 {[%clk 0:00:51]} 20. Re1 {[%clk 0:00:50]}  e6 {[%clk 0:00:45]} 21. c4 {[%clk 0:00:50]}  Rad8 {[%clk 0:00:38]} 22. Ba3 {[%clk 0:00:46]}  Qc7 {[%clk 0:00:27]} 23. Bxf8 {[%clk 0:00:47]}  Nxf8 {[%clk 0:00:28]} 24. Qd4 {[%clk 0:00:44]}  f6 {[%clk 0:00:20]} 25. Qxf6 {[%clk 0:00:43]}  d4 {[%clk 0:00:20]} 26. Rad1 {[%clk 0:00:36]}  d3 {[%clk 0:00:20]} 27. g4 {[%clk 0:00:36]}  d2 {[%clk 0:00:10]} 28. Re2 {[%clk 0:00:33]}  Rd3 {[%clk 0:00:10]} 29. Rexd2 {[%clk 0:00:17]}  Rxf3 {[%clk 0:00:10]} 30. Rd7 {[%clk 0:00:17]}  Rg3+ {[%clk 0:00:05]} 31. Kf1 {[%clk 0:00:18]}  Bd3+ {[%clk 0:00:00]} 32. R1xd3 {[%clk 0:00:17]} 1-0


[Site "https://www.chess.com"]

[Event "Titled Tuesday Blitz July 11 Late 2023"]
[White "Makarian, Rudik"]
[Black "Grebeniuk, Semen"]
[WhiteFideId "44105681"]
[BlackFideId "14117509"]
[WhiteElo "2938"]
[BlackElo "2621"]
[Result "1-0"]
[Round "10"]
[TimeControl "180+2"]
[Date "2023.07.11"]
[WhiteClock "0:01:20"]
[BlackClock "0:00:02"]
[Board "20"]

1. e4 {[%clk 0:03:00]}  c5 {[%clk 0:02:59]} 2. Nf3 {[%clk 0:03:00]}  Nc6 {[%clk 0:03:00]} 3. Bb5 {[%clk 0:03:00]}  g6 {[%clk 0:03:00]} 4. O-O {[%clk 0:03:01]}  Bg7 {[%clk 0:02:59]} 5. Re1 {[%clk 0:03:01]}  e5 {[%clk 0:02:44]} 6. b4 {[%clk 0:03:01]}  cxb4 {[%clk 0:02:32]} 7. a3 {[%clk 0:03:00]}  Nge7 {[%clk 0:02:21]} 8. axb4 {[%clk 0:03:00]}  O-O {[%clk 0:02:19]} 9. Nc3 {[%clk 0:03:00]}  a6 {[%clk 0:02:11]} 10. Bxc6 {[%clk 0:02:57]}  dxc6 {[%clk 0:02:08]} 11. d3 {[%clk 0:02:57]}  h6 {[%clk 0:02:02]} 12. Na4 {[%clk 0:02:53]}  Be6 {[%clk 0:01:58]} 13. Bb2 {[%clk 0:02:53]}  Qc7 {[%clk 0:01:40]} 14. h3 {[%clk 0:02:53]}  Kh7 {[%clk 0:01:39]} 15. Qd2 {[%clk 0:02:53]}  Rad8 {[%clk 0:01:37]} 16. Qc3 {[%clk 0:02:53]}  f6 {[%clk 0:01:31]} 17. Nc5 {[%clk 0:02:49]}  Bc8 {[%clk 0:01:32]} 18. Rad1 {[%clk 0:02:42]}  b6 {[%clk 0:01:26]} 19. Nb3 {[%clk 0:02:41]}  g5 {[%clk 0:01:04]} 20. Nh2 {[%clk 0:02:39]}  Ng6 {[%clk 0:01:01]} 21. d4 {[%clk 0:02:38]}  Nf4 {[%clk 0:00:47]} 22. Ng4 {[%clk 0:02:22]}  h5 {[%clk 0:00:44]} 23. Ne3 {[%clk 0:02:22]}  g4 {[%clk 0:00:34]} 24. Nf5 {[%clk 0:02:19]}  Bxf5 {[%clk 0:00:33]} 25. exf5 {[%clk 0:02:20]}  gxh3 {[%clk 0:00:31]} 26. g3 {[%clk 0:02:20]}  Nd5 {[%clk 0:00:29]} 27. Qf3 {[%clk 0:02:21]}  Qf7 {[%clk 0:00:24]} 28. c3 {[%clk 0:02:14]}  Rde8 {[%clk 0:00:18]} 29. Re4 {[%clk 0:02:12]}  Bh6 {[%clk 0:00:10]} 30. Rh4 {[%clk 0:02:09]}  Rg8 {[%clk 0:00:10]} 31. Kh2 {[%clk 0:01:48]}  Rg5 {[%clk 0:00:09]} 32. Nd2 {[%clk 0:01:43]}  exd4 {[%clk 0:00:07]} 33. c4 {[%clk 0:01:41]}  Nxb4 {[%clk 0:00:06]} 34. Bxd4 {[%clk 0:01:38]}  c5 {[%clk 0:00:06]} 35. Bc3 {[%clk 0:01:35]}  Rg4 {[%clk 0:00:06]} 36. Rxg4 {[%clk 0:01:29]}  hxg4 {[%clk 0:00:07]} 37. Qxg4 {[%clk 0:01:29]}  Nd3 {[%clk 0:00:07]} 38. Qf3 {[%clk 0:01:27]}  Ne5 {[%clk 0:00:07]} 39. Bxe5 {[%clk 0:01:27]}  Rxe5 {[%clk 0:00:07]} 40. Ne4 {[%clk 0:01:26]}  Qe7 {[%clk 0:00:08]} 41. Rd7 {[%clk 0:01:25]}  Rxe4 {[%clk 0:00:05]} 42. Rxe7+ {[%clk 0:01:25]}  Rxe7 {[%clk 0:00:06]} 43. Qc6 {[%clk 0:01:24]}  b5 {[%clk 0:00:04]} 44. Qxf6 {[%clk 0:01:22]}  Rg7 {[%clk 0:00:03]} 45. Qxa6 {[%clk 0:01:21]}  bxc4 {[%clk 0:00:03]} 46. Qxc4 {[%clk 0:01:21]}  Rf7 {[%clk 0:00:02]} 47. Qxf7+ {[%clk 0:01:20]} 1-0


[Site "https://www.chess.com"]

[Event "Titled Tuesday Blitz July 11 Late 2023"]
[White "Morefield, Jason"]
[Black "Leon Oquendo, Jorge"]
[WhiteFideId "30920825"]
[BlackFideId "3514803"]
[WhiteElo "2776"]
[BlackElo "2611"]
[Result "0-1"]
[Round "10"]
[TimeControl "180+2"]
[Date "2023.07.11"]
[WhiteClock "0:00:02"]
[BlackClock "0:00:17"]
[Board "22"]

1. a3 {[%clk 0:02:55]}  g6 {[%clk 0:02:59]} 2. h4 {[%clk 0:02:54]}  h6 {[%clk 0:02:57]} 3. e4 {[%clk 0:02:50]}  Bg7 {[%clk 0:02:58]} 4. Nc3 {[%clk 0:02:48]}  b6 {[%clk 0:02:57]} 5. Bc4 {[%clk 0:02:46]}  Bb7 {[%clk 0:02:58]} 6. Qe2 {[%clk 0:02:39]}  e6 {[%clk 0:02:57]} 7. Nf3 {[%clk 0:02:37]}  Ne7 {[%clk 0:02:57]} 8. d3 {[%clk 0:02:35]}  a6 {[%clk 0:02:57]} 9. Bd2 {[%clk 0:02:32]}  d6 {[%clk 0:02:55]} 10. Ba2 {[%clk 0:02:27]}  c5 {[%clk 0:02:55]} 11. h5 {[%clk 0:02:05]}  g5 {[%clk 0:02:55]} 12. Nh2 {[%clk 0:02:05]}  Nbc6 {[%clk 0:02:53]} 13. O-O-O {[%clk 0:02:02]}  Nd4 {[%clk 0:02:52]} 14. Qf1 {[%clk 0:02:02]}  b5 {[%clk 0:02:53]} 15. Ne2 {[%clk 0:01:56]}  Nxe2+ {[%clk 0:02:48]} 16. Qxe2 {[%clk 0:01:56]}  Nc6 {[%clk 0:02:49]} 17. f4 {[%clk 0:01:52]}  b4 {[%clk 0:02:40]} 18. a4 {[%clk 0:01:44]}  Nd4 {[%clk 0:02:38]} 19. Qf2 {[%clk 0:01:44]}  Qd7 {[%clk 0:02:20]} 20. fxg5 {[%clk 0:01:39]}  Qxa4 {[%clk 0:02:17]} 21. Bb1 {[%clk 0:01:15]}  Nxc2 {[%clk 0:01:45]} 22. Rdf1 {[%clk 0:01:03]}  Rf8 {[%clk 0:01:27]} 23. Bxc2 {[%clk 0:00:35]}  Qa1+ {[%clk 0:01:26]} 24. Bb1 {[%clk 0:00:35]}  Qxb2+ {[%clk 0:01:24]} 25. Kd1 {[%clk 0:00:36]}  Qxb1+ {[%clk 0:01:19]} 26. Ke2 {[%clk 0:00:36]}  Qb3 {[%clk 0:01:18]} 27. gxh6 {[%clk 0:00:28]}  Bd4 {[%clk 0:01:18]} 28. Qf4 {[%clk 0:00:22]}  c4 {[%clk 0:01:15]} 29. dxc4 {[%clk 0:00:20]}  Qxc4+ {[%clk 0:01:16]} 30. Kf3 {[%clk 0:00:19]}  f5 {[%clk 0:01:10]} 31. Qg5 {[%clk 0:00:12]}  Bxe4+ {[%clk 0:01:08]} 32. Kg3 {[%clk 0:00:13]}  Qd3+ {[%clk 0:01:05]} 33. Nf3 {[%clk 0:00:13]}  Kd7 {[%clk 0:01:02]} 34. h7 {[%clk 0:00:11]}  Rf7 {[%clk 0:00:47]} 35. Qh6 {[%clk 0:00:09]}  Rg7+ {[%clk 0:00:44]} 36. Kh2 {[%clk 0:00:07]}  Qe2 {[%clk 0:00:40]} 37. Bg5 {[%clk 0:00:02]}  Rh8 {[%clk 0:00:30]} 38. Re1 {[%clk 0:00:03]}  Qa2 {[%clk 0:00:24]} 39. Rxe4 {[%clk 0:00:03]}  fxe4 {[%clk 0:00:23]} 40. Nxd4 {[%clk 0:00:03]}  Rhxh7 {[%clk 0:00:23]} 41. Qf6 {[%clk 0:00:03]}  Rxh5+ {[%clk 0:00:22]} 42. Kg3 {[%clk 0:00:03]}  Rhxg5+ {[%clk 0:00:22]} 43. Kh4 {[%clk 0:00:03]}  Qd5 {[%clk 0:00:20]} 44. Nxe6 {[%clk 0:00:02]}  Rh7+ {[%clk 0:00:16]} 45. Qh6 {[%clk 0:00:02]}  Rxh6# {[%clk 0:00:17]} 0-1


[Site "https://www.chess.com"]

[Event "Titled Tuesday Blitz July 11 Late 2023"]
[White "Fantastic_Power"]
[Black "Pinheiro, Iung Alicio de O."]
[BlackFideId "2104350"]
[WhiteElo "2737"]
[BlackElo "2601"]
[Result "1-0"]
[Round "10"]
[TimeControl "180+2"]
[Date "2023.07.11"]
[WhiteClock "0:02:10"]
[BlackClock "0:00:12"]
[Board "23"]

1. e4 {[%clk 0:03:00]}  e5 {[%clk 0:02:58]} 2. Nf3 {[%clk 0:03:00]}  Nc6 {[%clk 0:02:58]} 3. Bc4 {[%clk 0:02:59]}  Nf6 {[%clk 0:02:56]} 4. d4 {[%clk 0:02:59]}  exd4 {[%clk 0:02:37]} 5. O-O {[%clk 0:02:59]}  Nxe4 {[%clk 0:02:33]} 6. Re1 {[%clk 0:02:59]}  d5 {[%clk 0:02:31]} 7. Bxd5 {[%clk 0:02:59]}  Qxd5 {[%clk 0:02:31]} 8. Nc3 {[%clk 0:02:59]}  Qd7 {[%clk 0:02:17]} 9. Nxe4 {[%clk 0:02:59]}  Be7 {[%clk 0:02:16]} 10. Bg5 {[%clk 0:02:59]}  O-O {[%clk 0:01:59]} 11. Bxe7 {[%clk 0:02:59]}  Qxe7 {[%clk 0:01:27]} 12. Nxd4 {[%clk 0:02:59]}  Nxd4 {[%clk 0:01:27]} 13. Qxd4 {[%clk 0:03:00]}  Rd8 {[%clk 0:01:22]} 14. Qc3 {[%clk 0:03:00]}  b6 {[%clk 0:00:59]} 15. Re3 {[%clk 0:02:54]}  Be6 {[%clk 0:00:58]} 16. Rg3 {[%clk 0:02:37]}  f5 {[%clk 0:00:56]} 17. Nf6+ {[%clk 0:02:21]}  Kh8 {[%clk 0:00:55]} 18. Nh5 {[%clk 0:02:18]}  Rg8 {[%clk 0:00:55]} 19. Re1 {[%clk 0:02:16]}  Rae8 {[%clk 0:00:51]} 20. Nf4 {[%clk 0:02:11]}  Qf7 {[%clk 0:00:12]} 21. Ng6+ {[%clk 0:02:10]} 1-0


[Site "https://www.chess.com"]